bitfinex-derivatives/quotes_BTCF0:USTF0_20250602
["timestamp","ask_amount","ask_price","bid_price","bid_amount"]
[1748837461254,0.28615327,104830.0,104820.0,1.81642271]
[1748837461861,0.28615327,104830.0,104820.0,1.81641474]
[1748837462157,0.28615327,104830.0,104820.0,1.80327633]
[1748837462358,0.28615327,104830.0,104820.0,1.86283583]
[1748837462662,0.28615327,104830.0,104820.0,1.87597565]
[1748837463359,0.28615327,104830.0,104820.0,1.87597502]
[1748837463559,0.28615327,104830.0,104820.0,1.86283405]
[1748837463863,0.28615327,104830.0,104820.0,1.87597496]
[1748837464159,0.28615327,104830.0,104820.0,1.87597502]
[1748837464663,0.29040281,104830.0,104820.0,1.87597502]
[1748837465663,0.29040281,104830.0,104820.0,1.5151734]
[1748837465865,0.29040281,104830.0,104820.0,1.51517664]
[1748837466159,0.29040281,104830.0,104820.0,1.39871967]
[1748837466356,0.29040281,104830.0,104820.0,1.51517779]
[1748837466663,0.29040281,104830.0,104820.0,1.50203405]
[1748837467465,0.29040281,104830.0,104820.0,1.5151799]
[1748837467649,0.29040281,104830.0,104820.0,1.50203405]
[1748837468661,0.29040281,104830.0,104820.0,1.51517979]
[1748837468857,0.29040281,104830.0,104820.0,1.50203405]
[1748837469370,0.29040281,104830.0,104820.0,1.61856885]
[1748837469557,0.29040281,104830.0,104820.0,1.65096885]
[1748837469757,0.28615327,104830.0,104820.0,1.66411415]
[1748837469957,0.28615327,104830.0,104820.0,1.65096885]
[1748837470157,0.28615327,104830.0,104820.0,1.66411416]
[1748837470363,0.28615327,104830.0,104820.0,1.65096885]
[1748837470864,0.29040281,104830.0,104820.0,1.65096885]
[1748837471069,0.29040281,104830.0,104820.0,1.69436261]
[1748837471271,0.29040281,104830.0,104820.0,1.70750761]
[1748837471458,0.29040281,104830.0,104820.0,1.59139713]
[1748837471961,0.29040281,104830.0,104820.0,1.60454185]
[1748837472166,0.29040281,104830.0,104820.0,1.54278713]
[1748837474770,0.29040281,104830.0,104820.0,1.59146713]
[1748837475465,0.29040281,104830.0,104820.0,1.96540304]
[1748837475663,0.29040281,104830.0,104820.0,1.59146713]
[1748837475866,0.29040281,104830.0,104820.0,1.60461776]
[1748837476166,0.29040281,104830.0,104820.0,1.60461773]
[1748837476464,0.29040281,104830.0,104820.0,1.56816426]
[1748837476671,0.29040281,104830.0,104820.0,1.55502724]
[1748837476867,0.09969251,104830.0,104820.0,1.56816423]
[1748837477263,0.09969251,104830.0,104820.0,1.92896423]
[1748837478067,0.09969251,104830.0,104820.0,1.91582724]
[1748837478269,0.09969251,104830.0,104820.0,1.92896365]
[1748837478661,0.29040281,104830.0,104820.0,1.92896365]
[1748837479163,0.29040281,104830.0,104820.0,1.92896441]
[1748837479667,0.09969251,104830.0,104820.0,1.92896504]
[1748837479869,0.09969251,104830.0,104820.0,1.92896507]
[1748837480671,0.09969251,104830.0,104820.0,1.88555823]
[1748837481266,0.09969251,104830.0,104820.0,1.88555822]
[1748837481565,0.09969251,104830.0,104820.0,1.8855582]
[1748837481766,0.09969251,104830.0,104820.0,1.91584427]
[1748837482070,0.09969251,104830.0,104820.0,1.96448993]
[1748837482273,0.09969251,104830.0,104820.0,1.87511317]
[1748837482658,0.09969251,104830.0,104820.0,1.88825154]
[1748837482863,0.09969251,104830.0,104820.0,1.87511317]
[1748837483568,0.09969251,104830.0,104820.0,1.8882607]
[1748837483771,0.09969251,104830.0,104820.0,1.87511317]
[1748837484365,0.09969251,104830.0,104820.0,1.83961513]
[1748837484566,0.09969251,104830.0,104820.0,1.82646751]
[1748837484767,0.09969251,104830.0,104820.0,1.71566751]
[1748837486267,0.09969251,104830.0,104820.0,1.60159551]
[1748837486472,0.09969251,104830.0,104820.0,1.87883631]
[1748837486868,0.09969251,104830.0,104820.0,1.86568843]
[1748837487068,0.09969251,104830.0,104820.0,1.87881886]
[1748837487368,0.09969251,104830.0,104820.0,1.8788167]
[1748837487573,0.09969251,104830.0,104820.0,1.87881671]
[1748837487771,0.09969251,104830.0,104820.0,1.8788167]
[1748837487973,0.09544297,104830.0,104820.0,1.8788167]
[1748837488462,0.09544297,104830.0,104820.0,1.86568843]
[1748837488666,0.09544297,104830.0,104820.0,1.87881872]
[1748837488868,0.09544297,104830.0,104820.0,1.87881978]
[1748837489173,0.09969251,104830.0,104820.0,1.86568843]
[1748837489474,0.09969251,104830.0,104820.0,1.83458843]
[1748837489671,0.09969251,104830.0,104820.0,1.39726843]
[1748837489874,0.29040291,104830.0,104820.0,1.83442843]
[1748837490266,0.29040291,104830.0,104820.0,1.84756033]
[1748837490467,0.29040291,104830.0,104820.0,1.79100406]
[1748837490780,0.29040291,104830.0,104820.0,1.83446278]
[1748837491079,0.65120291,104830.0,104820.0,1.27607055]
[1748837491778,0.65120291,104830.0,104820.0,1.17280168]
[1748837491976,0.65120291,104830.0,104820.0,1.33794349]
[1748837492275,0.65120291,104830.0,104820.0,1.3247159]
[1748837492481,0.65120291,104830.0,104820.0,1.33794382]
[1748837492673,0.65120291,104830.0,104820.0,1.33794143]
[1748837492867,0.65120291,104830.0,104820.0,1.3247159]
[1748837493269,0.65120291,104830.0,104820.0,1.33793306]
[1748837494179,0.65120291,104830.0,104820.0,1.3247159]
[1748837494883,0.65120291,104830.0,104820.0,1.33793102]
[1748837495079,0.65120291,104830.0,104820.0,1.45442748]
[1748837495272,0.65120291,104830.0,104820.0,1.51416192]
[1748837495580,0.65120291,104830.0,104820.0,1.395241]
[1748837496081,0.65120291,104830.0,104820.0,1.51416192]
[1748837496377,0.65120291,104830.0,104820.0,1.4707032]
[1748837496578,0.65120291,104830.0,104820.0,1.35178228]
[1748837496983,0.65120291,104830.0,104820.0,1.45440125]
[1748837497684,0.65120291,104830.0,104820.0,1.22140833]
[1748837497872,0.65120291,104830.0,104820.0,1.44119359]
[1748837498280,0.65120291,104830.0,104820.0,1.32465713]
[1748837498475,0.65120291,104830.0,104820.0,1.33786842]
[1748837498681,0.65120291,104830.0,104820.0,1.33786748]
[1748837498982,0.65120291,104830.0,104820.0,1.33786721]
[1748837499586,0.65120291,104830.0,104820.0,1.22137075]
[1748837499883,0.65120291,104830.0,104820.0,1.33786632]
[1748837500187,0.65120291,104830.0,104820.0,1.32465033]
[1748837500684,0.65120291,104830.0,104820.0,1.33785928]
[1748837501875,0.65120291,104830.0,104820.0,1.33785924]
[1748837502382,0.65120291,104830.0,104820.0,1.4543557]
[1748837503386,0.65120291,104830.0,104820.0,1.41090817]
[1748837503585,0.65120291,104830.0,104820.0,1.45435058]
[1748837504080,0.65120291,104830.0,104820.0,1.33785411]
[1748837504276,0.64695337,104830.0,104820.0,1.33785411]
[1748837504678,0.64695337,104830.0,104820.0,1.35106231]
[1748837505175,0.64695337,104830.0,104820.0,1.40770962]
[1748837505491,0.65120291,104830.0,104820.0,1.35105958]
[1748837505989,0.65120291,104830.0,104820.0,1.36426731]
[1748837506399,0.64695337,104830.0,104820.0,1.36426731]
[1748837506586,0.64695337,104830.0,104820.0,1.24777085]
[1748837506791,0.64695337,104830.0,104820.0,1.36426731]
[1748837506993,0.64695337,104830.0,104820.0,1.43454288]
[1748837507299,0.65120291,104830.0,104820.0,1.42133515]
[1748837507601,0.65120291,104830.0,104820.0,1.43454293]
[1748837507802,0.65120291,104830.0,104820.0,1.43454292]
[1748837508298,0.65120291,104830.0,104820.0,1.43454294]
[1748837508697,0.65120291,104830.0,104820.0,1.31562199]
[1748837509096,0.65120291,104830.0,104820.0,1.31562202]
[1748837509300,0.65120291,104830.0,104820.0,1.30241423]
[1748837509601,0.65120291,104830.0,104820.0,1.272182]
[1748837509895,0.65120291,104830.0,104820.0,1.31562074]
[1748837510197,0.65120291,104830.0,104820.0,1.30241313]
[1748837510403,0.64695337,104830.0,104820.0,1.41890959]
[1748837510699,0.09544297,104830.0,104820.0,1.46753345]
[1748837510897,0.09544297,104830.0,104820.0,1.89143345]
[1748837511097,0.09544297,104830.0,104820.0,1.95404306]
[1748837511399,0.09544297,104830.0,104820.0,3.45404306]
[1748837511599,0.09544297,104830.0,104820.0,3.46392027]
[1748837511996,0.09544297,104830.0,104820.0,3.57471926]
[1748837512203,0.09544297,104830.0,104820.0,3.60099908]
[1748837512406,0.09544297,104830.0,104820.0,3.60099737]
[1748837512902,0.09544297,104830.0,104820.0,3.60099738]
[1748837513596,0.09544297,104830.0,104820.0,3.71749384]
[1748837513998,0.09544297,104830.0,104820.0,3.61497877]
[1748837514396,0.09544297,104830.0,104820.0,3.62808598]
[1748837515709,0.09544297,104830.0,104820.0,3.71744739]
[1748837516212,0.09544297,104830.0,104820.0,3.70434018]
[1748837516708,0.09544297,104830.0,104820.0,3.71744588]
[1748837517004,0.09544297,104830.0,104820.0,3.70434018]
[1748837517400,0.09969251,104830.0,104820.0,3.70434018]
[1748837517807,0.09969251,104830.0,104820.0,3.59354018]
[1748837518406,0.09544297,104830.0,104820.0,3.47704372]
[1748837519304,0.09544297,104830.0,104820.0,3.2440508]
[1748837519503,0.09544297,104830.0,104820.0,3.47704372]
[1748837519703,0.09544297,104830.0,104820.0,3.49015135]
[1748837519899,0.09544297,104830.0,104820.0,3.47704372]
[1748837520100,0.09544297,104830.0,104820.0,3.49015238]
[1748837520300,0.09544297,104830.0,104820.0,3.47704372]
[1748837520701,0.09544297,104830.0,104820.0,3.49015062]
[1748837520908,0.09544297,104830.0,104820.0,3.49015063]
[1748837521111,0.09544297,104830.0,104820.0,3.47704372]
[1748837521608,0.09969251,104830.0,104820.0,3.47704372]
[1748837521803,0.09969251,104830.0,104820.0,3.38748231]
[1748837522205,0.09969251,104830.0,104820.0,3.39748231]
[1748837522407,0.09969251,104830.0,104820.0,3.41059089]
[1748837522603,0.09969251,104830.0,104820.0,3.39748231]
[1748837522810,0.09969251,104830.0,104820.0,3.39740231]
[1748837523608,0.09544297,104830.0,104820.0,3.39760231]
[1748837523813,0.09544297,104830.0,104820.0,3.52152364]
[1748837523998,0.09544297,104830.0,104820.0,3.52152352]
[1748837524203,0.09544297,104830.0,104820.0,3.50840231]
[1748837524404,0.09544297,104830.0,104820.0,3.53908672]
[1748837524603,0.09969251,104830.0,104820.0,3.52596551]
[1748837524907,0.09969251,104830.0,104820.0,3.53908685]
[1748837525106,0.09969251,104830.0,104820.0,3.52596551]
[1748837525415,0.09969251,104830.0,104820.0,3.53908686]
[1748837525909,0.09969251,104830.0,104820.0,3.52596551]
[1748837526504,0.09969251,104830.0,104820.0,3.55220769]
[1748837526703,0.09969251,104830.0,104820.0,3.5390866]
[1748837526911,0.09969251,104830.0,104820.0,3.55220745]
[1748837528002,0.09969251,104830.0,104820.0,3.55220742]
[1748837528407,0.09969251,104830.0,104820.0,3.66870387]
[1748837528703,0.09544297,104830.0,104820.0,3.65558306]
[1748837529008,0.09544297,104830.0,104820.0,3.68174478]
[1748837529207,0.09544297,104830.0,104820.0,3.75204184]
[1748837529507,0.09544297,104830.0,104820.0,3.73896098]
[1748837529709,0.09544297,104830.0,104820.0,3.75214626]
[1748837530111,0.09544297,104830.0,104820.0,3.73896098]
[1748837530514,0.09544297,104830.0,104820.0,3.75214622]
[1748837530716,0.09544297,104830.0,104820.0,3.73896098]
[1748837531010,0.002,104850.0,104840.0,0.1906921]
[1748837531214,0.11918035,104860.0,104850.0,0.190674]
[1748837531406,0.45014764,104870.0,104860.0,0.1906558]
[1748837531711,0.38176098,104880.0,104870.0,0.1906376]
[1748837531712,0.02096098,104880.0,104870.0,0.1906376]
[1748837531919,0.02096098,104880.0,104870.0,0.79723052]
[1748837532222,0.02096098,104880.0,104870.0,0.84567053]
[1748837532517,0.02096098,104880.0,104870.0,0.72917407]
[1748837532715,0.21158038,104880.0,104870.0,1.21326072]
[1748837533215,0.21158038,104880.0,104870.0,1.14617982]
[1748837533518,0.21158038,104880.0,104870.0,1.20002982]
[1748837533711,0.21158038,104880.0,104870.0,1.28780915]
[1748837534215,0.21258038,104880.0,104870.0,1.28980915]
[1748837534716,0.31242992,104880.0,104870.0,1.23052462]
[1748837535515,0.31242992,104880.0,104870.0,1.23160354]
[1748837535715,0.2892194,104880.0,104870.0,1.27831785]
[1748837536811,0.29346894,104880.0,104870.0,1.27831785]
[1748837537009,0.29346894,104880.0,104870.0,2.77831785]
[1748837537213,0.29346894,104880.0,104870.0,2.73390045]
[1748837537811,0.6500194,104880.0,104870.0,2.73390045]
[1748837539223,0.6500194,104880.0,104870.0,2.6894596]
[1748837540017,0.6500194,104880.0,104870.0,2.6893796]
[1748837540619,0.6500194,104880.0,104870.0,2.028962]
[1748837540816,0.6500194,104880.0,104870.0,2.32008191]
[1748837541024,0.6500194,104880.0,104870.0,2.31988191]
[1748837541325,0.6500194,104880.0,104870.0,2.32008191]
[1748837542825,0.65426894,104880.0,104870.0,2.32008191]
[1748837543825,0.6500194,104880.0,104870.0,2.32008191]
[1748837544918,0.6500194,104880.0,104870.0,0.82008191]
[1748837545525,0.6500194,104880.0,104870.0,2.32008191]
[1748837545712,0.6500194,104880.0,104870.0,2.4364796]
[1748837547329,0.6500194,104880.0,104870.0,2.4666796]
[1748837547918,0.6500194,104880.0,104870.0,2.7566796]
[1748837548115,0.6500194,104880.0,104870.0,2.8216796]
[1748837550625,0.6500194,104880.0,104870.0,2.7897396]
[1748837550826,0.6500194,104880.0,104870.0,2.3528996]
[1748837551125,0.6500194,104880.0,104870.0,2.7897396]
[1748837551926,0.6500194,104880.0,104870.0,2.4297396]
[1748837553124,0.6500194,104880.0,104870.0,2.47431033]
[1748837553938,0.6500194,104880.0,104870.0,2.50481033]
[1748837555533,0.6500194,104880.0,104870.0,3.27200802]
[1748837555534,0.003,104880.0,104870.0,3.27200802]
[1748837555832,0.003,104880.0,104870.0,3.58811893]
[1748837556425,0.11930708,104890.0,104880.0,0.1906085]
[1748837556625,0.11930708,104890.0,104880.0,1.31093777]
[1748837557035,0.11930708,104890.0,104880.0,1.266511]
[1748837557337,0.11930708,104890.0,104880.0,2.766511]
[1748837557634,0.11930708,104890.0,104880.0,2.80279313]
[1748837557635,0.12130708,104890.0,104880.0,2.80279313]
[1748837557934,0.12130708,104890.0,104880.0,2.80379313]
[1748837557935,0.12230708,104890.0,104880.0,2.80379313]
[1748837558529,0.12030708,104890.0,104880.0,2.89289554]
[1748837558728,0.12030708,104890.0,104880.0,2.93737542]
[1748837559230,0.12030708,104890.0,104880.0,3.05293542]
[1748837559532,0.11930708,104890.0,104880.0,3.10188542]
[1748837560731,0.11930708,104890.0,104880.0,3.04268128]
[1748837561331,0.11930708,104890.0,104880.0,3.09112129]
[1748837561639,0.11930708,104890.0,104880.0,3.04270484]
[1748837563037,0.11930708,104890.0,104880.0,2.99803599]
[1748837563238,0.11930708,104890.0,104880.0,3.04273697]
[1748837563638,0.11930708,104890.0,104880.0,3.04273453]
[1748837564032,0.11930708,104890.0,104880.0,2.99803599]
[1748837564340,0.11930708,104890.0,104880.0,3.046476]
[1748837564537,0.11930708,104890.0,104880.0,2.92125687]
[1748837565242,0.11930708,104890.0,104880.0,2.9090978]
[1748837566225,0.11930708,104890.0,104880.0,2.9412978]
[1748837574140,0.11930708,104890.0,104880.0,2.98599842]
[1748837574936,0.11930708,104890.0,104880.0,2.99815749]
[1748837575130,0.11930708,104890.0,104880.0,3.11677259]
[1748837577043,0.11930708,104890.0,104880.0,3.1167816]
[1748837578939,0.15240708,104890.0,104880.0,3.1167816]
[1748837579347,0.21520708,104890.0,104880.0,3.1167816]
[1748837579948,0.11930708,104890.0,104880.0,2.9860427]
[1748837580243,0.002,104910.0,104880.0,1.4384264]
[1748837580444,0.0666,104910.0,104900.0,0.88800659]
[1748837580747,0.0666,104910.0,104900.0,2.84740779]
[1748837581041,0.0666,104910.0,104900.0,3.0241905]
[1748837581550,0.0666,104910.0,104900.0,2.90779281]
[1748837581846,0.0706,104910.0,104900.0,2.90779281]
[1748837582341,0.0726,104910.0,104900.0,2.79715512]
[1748837582540,0.0726,104910.0,104900.0,2.91355281]
[1748837583443,0.0726,104910.0,104900.0,2.88305281]
[1748837583639,0.1031,104910.0,104900.0,2.88305281]
[1748837584145,0.1031,104910.0,104900.0,2.8840648]
[1748837584448,0.10734954,104910.0,104900.0,2.8840648]
[1748837585447,0.1031,104910.0,104900.0,2.8840648]
[1748837585638,0.1031,104910.0,104900.0,2.89619033]
[1748837585840,0.1031,104910.0,104900.0,2.92669033]
[1748837586149,0.1031,104910.0,104900.0,2.87825032]
[1748837586549,0.1031,104910.0,104900.0,2.92669033]
[1748837588252,0.1031,104910.0,104900.0,2.92672639]
[1748837591254,0.0726,104910.0,104900.0,2.92672639]
[1748837591951,0.0726,104910.0,104900.0,2.8103287]
[1748837592152,0.0726,104910.0,104900.0,3.2166287]
[1748837592356,0.1054,104910.0,104900.0,3.33302639]
[1748837592552,0.10964954,104910.0,104900.0,3.28724993]
[1748837592759,0.10964954,104910.0,104900.0,3.33303099]
[1748837596563,0.10964954,104910.0,104900.0,2.89643099]
[1748837596758,0.10964954,104910.0,104900.0,3.43459099]
[1748837596961,0.10964954,104910.0,104900.0,3.38880993]
[1748837597167,0.10964954,104910.0,104900.0,3.43460318]
[1748837597870,0.10964954,104910.0,104900.0,2.89644318]
[1748837598062,0.10964954,104910.0,104900.0,3.33304318]
[1748837598461,0.10564954,104910.0,104900.0,3.33304318]
[1748837599067,0.10364954,104910.0,104900.0,3.33304318]
[1748837600867,0.10364954,104910.0,104900.0,3.3626536]
[1748837601066,0.10364954,104910.0,104900.0,3.4431036]
[1748837601272,0.10364954,104910.0,104900.0,3.41365005]
[1748837601468,0.10364954,104910.0,104900.0,3.41364841]
[1748837602567,0.10364954,104910.0,104900.0,3.53226351]
[1748837602762,0.10364954,104910.0,104900.0,3.44310196]
[1748837603374,0.07084954,104910.0,104900.0,3.44310196]
[1748837603779,0.0666,104910.0,104900.0,3.44310196]
[1748837605875,0.0666,104910.0,104900.0,3.44311999]
[1748837609575,0.0666,104910.0,104900.0,3.39467998]
[1748837610276,0.0666,104910.0,104900.0,3.39471946]
[1748837611368,0.0666,104910.0,104900.0,3.45504133]
[1748837611568,0.0666,104910.0,104900.0,3.49658411]
[1748837612173,0.0978,104910.0,104900.0,3.49658411]
[1748837612474,0.0978,104910.0,104900.0,3.49658478]
[1748837612873,0.10204954,104910.0,104900.0,3.49658478]
[1748837613068,0.10204954,104910.0,104900.0,3.13574478]
[1748837613265,0.10204954,104910.0,104900.0,3.49654482]
[1748837613578,0.10204954,104910.0,104900.0,3.39467982]
[1748837613876,0.0978,104910.0,104900.0,3.39467982]
[1748837614764,0.0978,104910.0,104900.0,3.39467252]
[1748837617182,0.0978,104910.0,104900.0,3.51090213]
[1748837617371,0.0978,104910.0,104900.0,3.62721578]
[1748837618579,0.0978,104910.0,104900.0,3.51090213]
[1748837619082,0.0978,104910.0,104900.0,3.51090485]
[1748837621669,0.0978,104910.0,104900.0,3.51070485]
[1748837622177,0.0978,104910.0,104900.0,3.5107005]
[1748837622374,0.0978,104910.0,104900.0,3.62701415]
[1748837623475,0.0978,104910.0,104900.0,3.62701437]
[1748837623775,0.0978,104910.0,104900.0,3.68733624]
[1748837624174,0.0978,104910.0,104900.0,3.64149547]
[1748837624377,0.0978,104910.0,104900.0,2.85599452]
[1748837624581,0.0978,104910.0,104900.0,3.52514182]
[1748837626481,0.0978,104910.0,104900.0,3.51066106]
[1748837627381,0.0978,104910.0,104900.0,3.62697471]
[1748837629984,0.0978,104910.0,104900.0,3.51066106]
[1748837631888,0.0978,104910.0,104900.0,3.62697471]
[1748837632086,0.0666,104910.0,104900.0,3.62697471]
[1748837634185,0.002,104910.0,104900.0,3.87749663]
[1748837634489,0.09394297,104920.0,104910.0,0.1905539]
[1748837634685,0.09394297,104920.0,104910.0,1.15104389]
[1748837634988,0.09394297,104920.0,104910.0,1.18324389]
[1748837635283,0.09394297,104920.0,104910.0,1.19284701]
[1748837635491,0.09394297,104920.0,104910.0,1.28212331]
[1748837635882,0.09594297,104920.0,104910.0,1.16308824]
[1748837636187,0.09694297,104920.0,104910.0,1.16308824]
[1748837636382,0.09694297,104920.0,104910.0,1.07381194]
[1748837636585,0.09694297,104920.0,104910.0,1.07857194]
[1748837636788,0.09694297,104920.0,104910.0,1.19804205]
[1748837637390,0.09694297,104920.0,104910.0,1.12813698]
[1748837637581,0.09694297,104920.0,104910.0,1.24717205]
[1748837639478,0.06524297,104920.0,104910.0,1.24717205]
[1748837640892,0.06524297,104920.0,104910.0,1.24719574]
[1748837641792,0.06524297,104920.0,104910.0,2.74719574]
[1748837643686,0.06524297,104920.0,104910.0,2.62816067]
[1748837643987,0.06524297,104920.0,104910.0,2.58186083]
[1748837644293,0.06524297,104920.0,104910.0,2.7471883]
[1748837644493,0.06524297,104920.0,104910.0,2.951041]
[1748837644682,0.09544297,104920.0,104910.0,2.951041]
[1748837644881,0.09544297,104920.0,104910.0,3.03751783]
[1748837646793,0.09544297,104920.0,104910.0,2.98895132]
[1748837648295,0.09544297,104920.0,104910.0,2.98894541]
[1748837651194,0.06524297,104920.0,104910.0,3.46605906]
[1748837651782,0.06524297,104920.0,104910.0,3.42542732]
[1748837654291,0.06524297,104920.0,104910.0,3.58372732]
[1748837654493,0.06524297,104920.0,104910.0,3.42542732]
[1748837655090,0.06524297,104920.0,104910.0,3.54446239]
[1748837656986,0.06524297,104920.0,104910.0,3.42803869]
[1748837657193,0.06524297,104920.0,104910.0,3.54435234]
[1748837658791,0.06524297,104920.0,104910.0,3.37675076]
[1748837660597,0.06524297,104920.0,104910.0,3.42531727]
[1748837661300,0.06524297,104920.0,104910.0,3.42532583]
[1748837661489,0.06524297,104920.0,104910.0,3.53612583]
[1748837661490,0.00314297,104920.0,104910.0,3.53612583]
[1748837661695,0.00314297,104920.0,104910.0,3.6551609]
[1748837662707,0.4235,104930.0,104920.0,0.4231631]
[1748837662901,0.4235,104930.0,104920.0,1.14663997]
[1748837663405,0.4235,104930.0,104920.0,1.26295362]
[1748837663602,0.4235,104930.0,104920.0,1.21565016]
[1748837663791,0.4265,104930.0,104920.0,1.21665016]
[1748837663995,0.4305,104930.0,104920.0,1.10033651]
[1748837664700,0.0697,104930.0,104920.0,1.21665016]
[1748837664900,0.0697,104930.0,104920.0,1.54176322]
[1748837665109,0.0697,104930.0,104920.0,1.66555829]
[1748837665409,0.007,104930.0,104920.0,1.66555829]
[1748837665604,0.007,104930.0,104920.0,1.57799184]
[1748837665798,0.007,104930.0,104920.0,1.66543753]
[1748837665997,0.007,104930.0,104920.0,3.16543753]
[1748837666300,0.11328876,104940.0,104930.0,0.1905176]
[1748837666506,0.11328876,104940.0,104930.0,1.79768524]
[1748837666702,0.11328876,104940.0,104930.0,1.85711551]
[1748837667208,0.11328876,104940.0,104930.0,1.81104948]
[1748837667399,0.11328876,104940.0,104930.0,1.74071365]
[1748837667606,0.11428876,104940.0,104930.0,1.74071365]
[1748837668307,0.11528876,104940.0,104930.0,1.74071365]
[1748837670003,0.11528876,104940.0,104930.0,1.8570273]
[1748837670610,0.11528876,104940.0,104930.0,1.99485946]
[1748837671110,0.11528876,104940.0,104930.0,2.04338529]
[1748837671510,0.11528876,104940.0,104930.0,3.54338529]
[1748837671812,0.11528876,104940.0,104930.0,3.49487828]
[1748837673407,0.11528876,104940.0,104930.0,3.52697828]
[1748837674416,0.11528876,104940.0,104930.0,3.48100046]
[1748837674609,0.11528876,104940.0,104930.0,3.52695719]
[1748837678411,0.09614297,104940.0,104930.0,3.43778989]
[1748837679921,0.3608,104950.0,104940.0,0.1904994]
[1748837680118,0.3608,104960.0,104950.0,0.1904813]
[1748837680327,0.3608,104960.0,104950.0,1.09441181]
[1748837680618,0.3608,104960.0,104950.0,1.15384208]
[1748837680824,0.3608,104960.0,104950.0,1.15381814]
[1748837682027,0.3648,104960.0,104950.0,1.15381814]
[1748837682821,0.3688,104960.0,104950.0,1.15481814]
[1748837683426,0.4655,104960.0,104950.0,1.15481814]
[1748837683629,0.4655,104960.0,104950.0,1.20400814]
[1748837683826,0.4655,104960.0,104950.0,1.14457787]
[1748837684017,0.4655,104960.0,104950.0,1.20400814]
[1748837684621,0.4655,104960.0,104950.0,1.14457787]
[1748837686120,0.1047,104960.0,104950.0,1.14457787]
[1748837686322,0.1047,104960.0,104950.0,1.20400814]
[1748837686735,0.008,104960.0,104950.0,1.88480814]
[1748837687445,0.008,104960.0,104950.0,1.79436058]
[1748837687736,0.008,104960.0,104950.0,1.88455237]
[1748837688240,0.008,104960.0,104950.0,1.8845442]
[1748837689938,0.01224954,104960.0,104950.0,1.88445962]
[1748837690233,0.00424954,104960.0,104950.0,1.83902346]
[1748837690444,0.00424954,104960.0,104950.0,1.96654292]
[1748837690634,0.00424954,104960.0,104950.0,1.93019076]
[1748837690943,0.00424954,104960.0,104950.0,1.88545052]
[1748837691245,0.00214297,104970.0,104960.0,0.1904633]
[1748837691537,0.06634297,104970.0,104960.0,0.99305612]
[1748837691931,0.06634297,104970.0,104960.0,0.99304869]
[1748837692533,0.06734297,104970.0,104960.0,0.99304869]
[1748837693739,0.06834297,104970.0,104960.0,0.99304869]
[1748837695144,0.06834297,104970.0,104960.0,0.99780869]
[1748837696344,0.06834297,104970.0,104960.0,0.99774944]
[1748837696547,0.06834297,104970.0,104960.0,0.80774944]
[1748837700744,0.06834297,104970.0,104960.0,0.8077517]
[1748837700935,0.00414297,104970.0,104960.0,0.92406535]
[1748837701138,0.00414297,104970.0,104960.0,1.027922]
[1748837701637,0.47310414,104980.0,104970.0,0.1904452]
[1748837701638,0.44130414,104980.0,104970.0,0.1904452]
[1748837701936,0.38010414,104980.0,104970.0,1.39387567]
[1748837702851,0.38010414,104980.0,104970.0,1.4896581]
[1748837703048,0.02230414,104980.0,104970.0,1.9396254]
[1748837703350,0.005,104980.0,104970.0,1.89520527]
[1748837703537,0.005,104980.0,104970.0,1.89518275]
[1748837704040,0.06134297,104990.0,104980.0,0.190427]
[1748837704041,0.00014297,104990.0,104980.0,0.190427]
[1748837704350,0.00014297,104990.0,104980.0,1.13823511]
[1748837704554,0.00014297,104990.0,104980.0,1.02192146]
[1748837704745,0.03054297,104990.0,104980.0,1.02192146]
[1748837704945,0.06104297,104990.0,104980.0,1.02192146]
[1748837705249,0.06104297,104990.0,104980.0,1.06758198]
[1748837706136,0.00114297,104990.0,104980.0,1.06758198]
[1748837706647,0.00114297,104990.0,104980.0,1.18389563]
[1748837707041,0.00114297,104990.0,104980.0,1.2433259]
[1748837707445,0.00114297,104990.0,104980.0,1.12701225]
[1748837707639,0.00114297,104990.0,104980.0,1.16336441]
[1748837707839,0.00114297,104990.0,104980.0,1.16334797]
[1748837708042,0.00114297,104990.0,104980.0,1.20899653]
[1748837708253,0.00114297,104990.0,104980.0,1.16333601]
[1748837708455,0.00114297,104990.0,104980.0,1.2432975]
[1748837708655,0.4265,105000.0,104990.0,0.1904089]
[1748837708947,0.363,105000.0,104990.0,1.42408235]
[1748837709147,0.363,105000.0,104990.0,1.47289238]
[1748837709636,0.0022,105000.0,104990.0,1.6486363]
[1748837709837,9.534e-05,105010.0,105000.0,0.1903907]
[1748837710044,9.534e-05,105010.0,105000.0,1.22787127]
[1748837710240,9.534e-05,105010.0,105000.0,1.18351268]
[1748837710440,0.00029534,105010.0,105000.0,1.54431268]
[1748837710654,9.534e-05,105010.0,105000.0,1.58864401]
[1748837710949,0.00029534,105010.0,105000.0,1.58864401]
[1748837711142,0.38029951,105020.0,105010.0,0.1903726]
[1748837711346,0.38029951,105020.0,105010.0,1.24498562]
[1748837711742,0.38049951,105020.0,105010.0,1.24498562]
[1748837712237,0.78331273,105030.0,105020.0,0.20766073]
[1748837712238,0.4562,105030.0,105020.0,0.20766073]
[1748837712547,0.4562,105030.0,105020.0,0.78692026]
[1748837712754,0.4252,105030.0,105020.0,0.78692026]
[1748837713146,0.3628,105030.0,105020.0,0.88828026]
[1748837713347,0.363,105030.0,105020.0,0.88828026]
[1748837713656,0.3628,105030.0,105020.0,0.88828026]
[1748837713848,0.363,105030.0,105020.0,0.93392882]
[1748837714152,0.363,105030.0,105020.0,0.93492882]
[1748837715343,0.0627172,105060.0,105040.0,0.2854644]
[1748837715543,0.0613,105050.0,105040.0,1.49545541]
[1748837715744,0.0613,105050.0,105040.0,1.67701494]
[1748837715947,0.0613,105050.0,105040.0,1.24635644]
[1748837716152,0.0613,105050.0,105040.0,1.20070788]
[1748837716355,0.0615,105050.0,105040.0,1.20070788]
[1748837716649,0.0615,105050.0,105040.0,1.21546788]
[1748837717055,0.0615,105050.0,105040.0,1.56546788]
[1748837717254,0.0635,105050.0,105040.0,1.56546788]
[1748837718249,0.0635,105050.0,105040.0,1.12950788]
[1748837718453,0.0655,105050.0,105040.0,1.57666788]
[1748837719455,0.06974954,105050.0,105040.0,1.60896788]
[1748837720860,0.06974954,105050.0,105040.0,1.65803788]
[1748837722050,0.06954954,105050.0,105040.0,1.65803788]
[1748837722246,0.03914954,105050.0,105040.0,1.65803788]
[1748837722649,0.03934954,105050.0,105040.0,1.65803788]
[1748837723352,0.03934954,105050.0,105040.0,1.54197835]
[1748837723552,0.03934954,105050.0,105040.0,1.65795788]
[1748837723952,0.07264954,105050.0,105040.0,1.65795788]
[1748837724653,0.07264954,105050.0,105040.0,1.66095788]
[1748837724654,0.06864954,105050.0,105040.0,1.66095788]
[1748837726056,0.06844954,105050.0,105040.0,1.66095788]
[1748837726257,0.06864954,105050.0,105040.0,1.66095788]
[1748837726458,0.06864954,105050.0,105040.0,1.70630149]
[1748837726958,0.06864954,105050.0,105040.0,1.59024196]
[1748837727164,0.06864954,105050.0,105040.0,1.70630149]